Cogmind - Beta 16 @@@ ROGUE MODE // 2025.12.01 @ 22:09:33 Player: Skysub Result: Destroyed by D-53 Grenadier with Mini Grenade Launcher Performance ------------- Evolutions (0) 0 Regions Visited (2) 400 Robots Destroyed (29) 145 Value Destroyed (625) 625 Prototype IDs (0) 0 Alien Tech Used (0) 0 Bonus (0) 0 TOTAL SCORE: 1170 Bonus ------- None Cogmind --------- Core Integrity 0/250 Matter 291/300 Energy 249/250 System Corruption 3% Temperature Cool (0) Movement Core (800) Ox15 Location -10/Mines Parts ------- > --- POWER (1) -------- Ion Engine > --- PROPULSION (2) --- (None) > --- UTILITY (2) ------ High-capacity Storage Unit > --- WEAPON (2) ------- Light Assault Rifle > --- INVENTORY (20) --- Light Nuclear Core Light Treads Heat Sink Huge Storage Unit Improved Terrain Scanner Seismic Detector Propulsion Shielding Propulsion Shielding Light Armor Plating Light Armor Plating Light Armor Plating Light Armor Plating Tractor Beam Tractor Beam Small Laser Rocket Launcher Datajack Mining Claw Peak State ------------ > --- POWER ------------ Light Ion Engine > --- PROPULSION ------- Light Treads Compact Wheel > --- UTILITY ---------- Huge Storage Unit Light Armor Plating > --- WEAPON ----------- Light Assault Rifle Light Assault Rifle > --- INVENTORY -------- Ion Engine Ion Engine Light Treads Wheel Wheel Small Storage Unit Improved Terrain Scanner Seismic Detector Light Armor Plating Light Armor Plating Light Armor Plating Light Armor Plating Light Armor Plating Tractor Beam Small Laser Light Assault Rifle Datajack Mining Laser [Rating: 9] Favorites ----------- Power Light Ion Engine Engine Light Ion Engine Propulsion Light Treads Treads Light Treads Wheel Wheel Utility Light Armor Plating Device Seismic Detector Storage High-capacity Storage Unit Protection Light Armor Plating Weapon Light Assault Rifle Energy Gun Small Laser Ballistic Gun Light Assault Rifle Build | -11 -10 -10 ------- Run | Yrd Mat Min Slots Evolved . | . . . Power . | . . . Propulsion . | . . . Utility . | . . . Weapon . | . . . Parts Attached 19 | 7 7 5 Power 2 | 1 . 1 Engine 2 | 1 . 1 Core . | . . . Reactor . | . . . Propulsion 6 | 2 2 2 Treads 3 | 2 . 1 Leg . | . . . Wheel 3 | . 2 1 Hover . | . . . Flight . | . . . Utility 6 | 2 4 . Device 1 | 1 . . Storage 3 | 1 2 . Processor . | . . . Hackware . | . . . Protection 2 | . 2 . Artifact . | . . . Weapon 5 | 2 1 2 Energy Gun 1 | . . 1 Energy Cannon . | . . . Ballistic Gun 4 | 2 1 1 Ballistic Cannon . | . . . Launcher . | . . . Special Weapon . | . . . Impact Weapon . | . . . Slashing Weapon . | . . . Piercing Weapon . | . . . Special Melee Weapon . | . . . Unidentified Prototypes . | . . . Parts Lost 12 | . 3 9 Power 1 | . . 1 Propulsion 5 | . 1 4 Utility 2 | . 1 1 Weapon 4 | . 1 3 Highest Loss Streak 5 | . 3 5 To Critical Strikes . | . . . Average Backups 16 | 4 18 18 Power 1 | . 1 1 Propulsion 2 | 1 2 1 Utility 9 | 1 10 12 Weapon 2 | . 3 3 Tool/Special . | . . . Unused Backups 18 | . 2 16 Power 2 | . 1 1 Propulsion 1 | . . 1 Utility 10 | . . 10 Weapon 4 | . 1 3 Tool/Special 1 | . . 1 Average Slot Usage (%) 99 | . 99 97 Engine 13 | . 14 13 Treads 14 | . 14 13 Wheel 13 | . 13 14 Storage 14 | . 15 14 Protection 12 | . 12 13 Energy Gun 2 | . . 7 Ballistic Gun 25 | . 28 19 Peak Build Rating 9 | 7 9 9 Average Rating 8 | 6 8 8 On Entrance 5 | . 7 9 Avg Prop Armor Cover (%) 10 | . 10 10 Naked Turns . | . . . Heaviest Build 90 | 11 90 50 Greatest Support 40 | 40 40 10 Greatest Overweight (x) 5 | . 5 4 Average Overweight (x) 3 | . 3 4 Largest Inventory Capacity 25 | 8 25 20 Average Capacity 18 | 7 21 20 Most Carried 22 | 7 22 20 Average Carried 16 | 5 18 18 Final Capacity 20 | 8 20 20 Final Carried 20 | 7 20 18 Class Distribution -------------------- 100% | Mutant Dominant Class ---------------- Mutant | -10/Materials Mutant | -10/Mines Resources | -11 -10 -10 ----------- Run | Yrd Mat Min Matter Collected 611 | 348 183 80 Remotely . | . . . Salvage Created 993 | 240 526 227 Parts 67 | 28 29 10 Haulers Intercepted 2 | . 2 . Recyclers Shooed . | . . . Parts Field Recycled . | . . . Retrieved Matter . | . . . Parts Self-Destructed . | . . . Prevented . | . . . Parts Restored . | . . . Kills | -11 -10 -10 ------- Run | Yrd Mat Min Combat Hostiles Destroyed 17 | . 10 7 Guns 17 | . 10 7 Classes Destroyed 6 | 3 2 1 Worker 1 | 1 . . Tunneler 8 | 8 . . Hauler 2 | . 2 . Recycler 1 | 1 . . Swarmer 3 | . . 3 Grunt 14 | . 10 4 Best Kill Streak 5 | 4 5 3 Combat Bots Only 5 | . 5 3 Max Kills in Single Turn 1 | 1 1 1 Gunslinging . | . . . Exploded . | . . . Melee . | . . . Uniques/NPCs Destroyed . | . . . Combat | -11 -10 -10 -------- Run | Yrd Mat Min Hostile Shots Fired 117 | . 67 50 Missed 28 | . 18 10 Hits 89 | . 49 40 Projectile 89 | . 49 40 AOE 11 | . . 11 Damage Taken 1389 | . 647 742 Core 259 | . 99 160 Absorbed by Shields . | . . . Core Remaining (%) 100 | 100 . . Volleys Fired 122 | 39 58 25 Largest 2 | 2 2 2 Hottest 60 | 40 40 60 Shots Fired 244 | 78 116 50 Gun 244 | 78 116 50 Cannon . | . . . Launcher . | . . . Special . | . . . Kinetic 230 | 78 116 36 Thermal 14 | . . 14 Explosive . | . . . Electromagnetic . | . . . Robot Hit Streak 19 | 8 19 7 Robot Miss Streak 5 | 4 5 2 Penetration Max . | . . . Secondary Targets 2 | . 2 . Max Gunslinging Chain 1 | . 1 . Shots Hit Robots 160 | 47 82 31 Core Hits 64 | 17 32 15 Critical Kills 1 | . 1 . Critical Parts Destroyed 3 | 2 . 1 Critical Strikes 4 | 2 1 1 Destroy 4 | 2 1 1 Melee Attacks . | . . . Impact . | . . . Slashing . | . . . Piercing . | . . . Sneak Attacks . | . . . Combat Hostiles . | . . . Follow-up Attacks . | . . . Damage Inflicted 1339 | 376 691 272 Guns 1339 | 376 691 272 Cannons . | . . . Explosions . | . . . Melee . | . . . Ramming . | . . . Kinetic 1251 | 376 691 184 Thermal 88 | . . 88 Explosive . | . . . Electromagnetic . | . . . Impact . | . . . Slashing . | . . . Piercing . | . . . Highest Corruption 3 | . 3 3 Average Corruption 2 | . 1 3 Corruption Purged . | . . . Corruption Blocked . | . . . Effects 26 | . 12 14 Message Errors 5 | . 3 2 Matter Fused 6 | . 2 4 Heat Flow Errors 5 | . 2 3 Energy Discharges 3 | . 2 1 Parts Rejected 1 | . . 1 Data Loss (minor) 2 | . 1 1 Data Loss (major) 1 | . 1 . Misfires 2 | . . 2 Alerts 1 | . 1 . Overload Shots . | . . . Overflow Damage . | . . . Projectiles . | . . . Explosions . | . . . Melee . | . . . Knockbacks . | . . . Impact . | . . . Kinetic . | . . . Secondary . | . . . Self-Inflicted Damage . | . . . Shots . | . . . Rammed . | . . . Targets Rammed . | . . . Kicked . | . . . Crushed . | . . . Highest Temperature 266 | . 191 266 Average Temperature 60 | . 32 99 Received Heat Transfer 519 | . 369 150 Siege Activations . | . . . Martial Activations . | . . . Shielding Activations . | . . . Robots Disrupted . | . . . Combat Hostiles . | . . . Robots Corrupted . | . . . Combat Hostiles . | . . . Parts Fried . | . . . Impact Corruptions . | . . . Robots Melted . | . . . Combat Hostiles . | . . . Parts Melted . | . . . Heat Transferred 200 | . . 200 Parts Sabotaged . | . . . Parts Stolen . | . . . Parts Stripped . | . . . Power Chain Reactions . | . . . Alert | -11 -10 -10 ------- Run | Yrd Mat Min Maximum Alert Level . | . . . Low Security (%) 100 | 100 100 100 Level 1 . | . . . Level 2 . | . . . Level 3 . | . . . Level 4 . | . . . Level 5 . | . . . High Security . | . . . Max Security . | . . . Peak Influence 130 | 10 130 70 Initial . | . . . Average 24 | 1 36 13 Influence Increases 565 | 50 345 170 Destroy 0b10 Robot/C 340 | . 200 140 Destroy 0b10 Robot/NC 60 | 50 10 . Destroy Leader 84 | . 54 30 Successful Hack 21 | . 21 . Select Force Hacks 60 | . 60 . Influence Decreases 565 | 50 345 170 Time Decay 525 | 50 315 160 Lost Part 40 | . 30 10 Squads Dispatched 3 | . 3 . Investigation 3 | . 3 . Extermination . | . . . Reinforcement . | . . . Assault . | . . . Garrison . | . . . Intercept . | . . . Searches Triggered . | . . . Construction Impeded . | . . . Haulers Reinforced . | . . . Active Scanning Responses . | . . . Cargo Convoy Interrupts . | . . . Stealth | -11 -10 -10 --------- Run | Yrd Mat Min Distress Signals . | . . . Communications Jammed . | . . . Distress Signals . | . . . Times Spotted 30 | . 20 10 Peak Tracking Total 7 | . 7 3 Tactical Retreats . | . . . Traps | -11 -10 -10 ------- Run | Yrd Mat Min Traps Triggered 3 | . 3 . Indirectly . | . . . Trap Hack Attempts . | . . . Triggered . | . . . Disarmed . | . . . Reprogrammed . | . . . Reused . | . . . Traps Extracted . | . . . Installed . | . . . Triggered . | . . . Machines | -11 -10 -10 ---------- Run | Yrd Mat Min Machines Disabled . | . . . Max in Single Turn . | . . . Machines Repaired . | . . . Machines Dismantled . | . . . Machines Sabotaged . | . . . Overloaded Fab Kills . | . . . Hacking | -11 -10 -10 --------- Run | Yrd Mat Min Machines Accessed 9 | . 9 . Terminals 7 | . 7 . Fabricators . | . . . Repair Stations . | . . . Recycling Units 2 | . 2 . Scanalyzers . | . . . Garrison Access . | . . . Total Hacks 32 | . 32 . Successful 15 | . 15 . Failed 17 | . 17 . Catastrophic 1 | . 1 . Database Lockouts . | . . . Manual 27 | . 27 . Terminals 23 | . 23 . Fabricators . | . . . Repair Stations . | . . . Recycling Units 9 | . 9 . Scanalyzers . | . . . Garrison Access . | . . . Terminal Hacks 1 | . 1 . Terminal Index 1 | . 1 . Fabricator Hacks . | . . . Repair Station Hacks . | . . . Recycling Unit Hacks 3 | . 3 . Report Inventory 2 | . 2 . Retrieve Components 1 | . 1 . Scanalyzer . | . . . Garrison Access Hacks . | . . . Unauthorized Hacks 11 | . 11 . Terminals 9 | . 9 . Botnet 2 | . 2 . Operators 1 | . 1 . Skim 6 | . 6 . Fabricators . | . . . Repair Stations . | . . . Recycling Units 2 | . 2 . Tunnel 2 | . 2 . Scanalyzers . | . . . Garrison Access . | . . . Data Cores Recovered . | . . . Used . | . . . Hacking Detections 9 | . 9 . Full Trace Events 2 | . 2 . Feedback Events . | . . . Feedback Blocked . | . . . Robot Schematics Acquired . | . . . Robots Built . | . . . Authchips . | . . . Time . | . . . Total Robot Build Rating . | . . . Part Schematics Acquired . | . . . Parts Built . | . . . Authchips . | . . . Time . | . . . Total Part Build Rating . | . . . Part Studies Acquired . | . . . Parts Repaired . | . . . Time . | . . . Parts Recycled . | . . . Recycled Matter . | . . . Retrieved Matter . | . . . Retrieved Components 2 | . 2 . Parts Scanalyzed . | . . . Part Schematics Acquired . | . . . Parts Damaged . | . . . Bothacking | -11 -10 -10 ------------ Run | Yrd Mat Min Used RIF Installer . | . . . Robots Hacked . | . . . Non-combat . | . . . Combat . | . . . Robot Hacks Applied . | . . . Relay Couplers Released . | . . . Fabnet Peak Effective % . | . . . Robots Rewired . | . . . Allies Hacked . | . . . Hacks Repelled . | . . . Allies | -11 -10 -10 -------- Run | Yrd Mat Min Total Allies . | . . . Largest Group . | . . . Highest-Rated Group . | . . . Highest-Rated Ally . | . . . Total Orders . | . . . Ally Attacks . | . . . Total Damage . | . . . Kills . | . . . Allies Corrupted . | . . . Allies Melted . | . . . Intel | -11 -10 -10 ------- Run | Yrd Mat Min Active Infowar (turns) 242 | 205 37 . Seismic 242 | 205 37 . Robot Analysis Total . | . . . Derelict Logs Recovered 2 | . . 2 Drone Launches . | . . . Drone Recoveries . | . . . Exploration | -11 -10 -10 ------------- Run | Yrd Mat Min Turns Passed 2191 | 374 1261 556 Spaces Moved 970 | 161 466 343 Core 1 | 1 . . Treads 182 | 160 22 . Legs . | . . . Wheels 787 | . 444 343 Hover . | . . . Flight . | . . . Fastest Speed 50 | 50 130 140 Average Speed 148 | 159 150 140 Slowest Speed 175 | 160 175 140 Overloaded Moves . | . . . Propulsion Burnouts . | . . . Robots Hopped . | . . . Potential Cave-ins . | . . . Cave-ins Triggered . | . . . Exploration Rate (%) 47 | 11 75 57 Regions Visited 2 Branch Regions 1 Pre-discovered Areas 5 | . 4 1 Known Exits Taken 1 | . 1 . Unknown Exits Taken 1 | 1 . . Scrap Searched 1 | . . 1 Spaces Dug . | . . . Terrain Destroyed . | . . . Melee . | . . . Projectile . | . . . AOE . | . . . Terrain Rammed . | . . . Walls Destroyed . | . . . Machines Disabled . | . . . Actions | -11 -10 -10 --------- Run | Yrd Mat Min Total 1522 | 213 931 378 Wait 378 | . 377 1 Move 968 | 160 465 343 Hop . | . . . Pick Up 30 | 7 20 3 Fast Attach 8 | 7 . 1 Attach 8 | . 3 5 Detach . | . . . Swap 4 | . 4 . Drop 4 | . 4 . Fire 122 | 39 58 25 Melee . | . . . Ram . | . . . Kick . | . . . Crush . | . . . Escape Stasis . | . . . Rewire . | . . . Trap . | . . . Miscellaneous . | . . . Route ------- -11/Scrapyard -10/Materials (discovered 6 exits: *Mat x3 / *Min x2 / [*Sub]) -10/Mines (discovered 2 exits: *Mat / [*Sub]) History --------- Turn | Location | Event 41 | -11/Scrapyard | Discovered new exit (range 15) 375 | -11/Scrapyard | Entered Materials 376 | -10/Materials | Build established: Mutant 509 | -10/Materials | Discovered new exit (range 15) 935 | -10/Materials | Lost 3 parts (1n1u1w) 1007 | -10/Materials | Discovered new exit (range 7) 1074 | -10/Materials | Discovered new exit (range 16) 1246 | -10/Materials | Discovered new exit (range 7) 1289 | -10/Materials | Learned location of 1 exit from Recycling 1347 | -10/Materials | Identified exit to Mines 1347 | -10/Materials | Identified exit to Materials 1347 | -10/Materials | Learned location of 1 exit from Materials 1393 | -10/Materials | Loaded intel: 8 terminal locations 1454 | -10/Materials | Learned location of Mines (-10) 1469 | -10/Materials | Learned location of Mines (-9) 1495 | -10/Materials | Learned location of 2 exits from Subcaves 1532 | -10/Materials | Learned location of 2 exits from Materials 1577 | -10/Materials | Learned Storage security intel 1636 | -10/Materials | Entered Mines 1755 | -10/Mines | Deemed a non-threat by the Exiles lab entrance 1814 | -10/Mines | Learned Materials terminal intel 1840 | -10/Mines | Core integrity fell below 50% 1889 | -10/Mines | Lost 3 parts (1p2w) 1904 | -10/Mines | Discovered new exit (range 9) 2002 | -10/Mines | Learned 2 Materials zone layouts 2005 | -10/Mines | Discovered exit to Materials (range 4) 2023 | -10/Mines | Received a Rocket Launcher from a helpful Derelict 2173 | -10/Mines | Assembled infested the area 2187 | -10/Mines | Core integrity fell below 20% 2192 | -10/Mines | Destroyed by D-53 Grenadier with Mini Grenade Launcher Last Messages --------------- security following our previous successful raids." World map confirmed: -8/Storage. 02083_ TB-ATT(g): "We scattered so the Unaware couldn't effectively use their advantage in numbers, and I suggest you do the same." 02083_ TB-ATT(g) slips back into the shadows. 02090_ System corrupted: Energy discharge (-97). 02126_ System corrupted: Matter fused (-7). 02148_ System corrupted: Heat flow error (+200). 02164_ System corrupted: Matter fused (-10). 02173_ ALERT: Infestation in the mines, dispatching Demolisher response squad. 02179_ C-45 Heavy ARC bursts open, deploying its payload. 02179_ D-53 Grenadier unfolds itself. 02179_ Wheel destroyed. 02179_ Lgt. Armor Plating destroyed. 02184_ The unstable cave ceiling collapses. 02186_ Lgt. Treads destroyed. 02188_ Sml. Laser destroyed. 02190_ System corrupted: Matter fused (-7). 02192_ Wheel destroyed. Map ----- +----------------------------------------------------+ | | | | | ???????????????????????????????????????????? | | ???????????????????????????????????????????? | | ???????????????????????????????????????????? | | ???????????????????????????????????????????? | | ???????????????????????????????????????????? | | ???????????????????????????????????####????? | | ???????????????????????????????????# ##???? | | ???????????????????????????????????# ##??? | | ???????????????????????????????????# #??? | | ????????????????????#####??????????## #??? | | ?????#????????????### # ##?????????## ##??? | | ?????? ??????## ##???????## #???? | | ???????""" ##### #???????# #???? | | ???????""" "%" ##??????# ##??? | | ???????""" " d #??????# #??? | | ?????# ##### ##?????# #??? | | ???????????????## d ##????# #??? | | ??????????????## #????## ##??? | | ?????????????## ##?????## ##???? | | ?????????? ## #??????# #????? | | ????????? #??????# #????? | | ????????? #####??# #????? | | ????????? # # ##?# #????? | | ????????? # @ # ### #????? | | ?????????? #?# ## #????? | | ?????????? #??### ## #????? | | ??????????? ?????#### #### ## #????? | | ??????????? ?????????###??### ### #????? | | ???????????? ?????????????????# ##?# #????? | | ???????????????????????????????# #### #????? | | ???????????????????????????????# #????? | | ???????????????????????????????###### #????? | | ????????????????????????????????????# #????? | | ??????????????????????????????####### #????? | | ???????????????????????????#### ##???? | | ??????????????????????????## #???? | | ??????????????????????????# #???? | | ????????????????????#?????# #???? | | ????????????????????# ????# #???? | | ????????????????????# ????## #### ##???? | | ???????????????????## ????# ###??#####????? | | ??????????? ???????# ##??# #####?????????? | | ??????????? #### ### #?????????? | | ?????????? ## ### #???###???? | | ????????????? < ## #?# #??# ##??? | | ????????????????????# #?# ### #??? | | ???????????????????# ## ### #??? | | ??????????????????# ### ## #???? | +----------------------------------------------------+ Best States ------------- Heat Dissipation 25 Energy Generation 10 Energy Capacity 250 Matter Stores 300 Matter Capacity 300 Sight Range 16 Terrain Scan Density 10 Armor Coverage 150 Evasion (%) 40 Recoil Reduction 2 Item Schematics ----------------- None Robot Schematics ------------------ None Fabricated ------------ Nothing Repaired ---------- Nothing Studied --------- None Alien Tech Used ----------------- None Achievements -------------- None Challenges ------------ None Game ------ Seed ScrapoidHeavyTerrabomb Manual? 0 Play Time 00:12:53 Cumulative 302.3 hours Start 2025.12.01 @ 21:59:11 End 2025.12.01 @ 22:09:33 Sessions 1 Manual Loads 0 Difficulty Rogue Special Mode None Game No. 373 Rogue 373 Adventurer 0 Explorer 0 Win Type - Total 21 Types 13/0/3/1/1/0/1/1/0/1 Lore% 78 Gallery% 76 Achievement% 60 Wizard Run 0 Options --------- Layout 1 ASCII 0 Keyboard 1 Movement Numpad Keybinds 0 Fullscreen 2 Font 32/SmallcapsGlow Map View 77x35 Zoom Use 0% Tactical HUD 1 Map Filters NONE Filters NONE Steam 1 RUN: 918e5930-faf0-40ca-ab4f-e8bcc67f198e